bitfinex-derivatives/quotes_SOLF0:USTF0_20250820
["timestamp","ask_amount","ask_price","bid_price","bid_amount"]
[1755666344110,2.96,180.65,180.61,2.91]
[1755666344303,2.96,180.66,180.61,2.91]
[1755666344606,2.96,180.65,180.61,2.91]
[1755666344904,2.96,180.64,180.61,2.91]
[1755666345409,2.96,180.64,180.62,2.91]
[1755666345594,135.08,180.67,180.62,2.91]
[1755666345902,2.96,180.66,180.59,2.45341283]
[1755666350113,2.96,180.66,180.57,2.91]
[1755666351507,2.96,180.66,180.56,2.45341283]
[1755666351713,2.96,180.64,180.54,2.45341283]
[1755666351908,2.96,180.62,180.52,2.91]
[1755666352511,2.96,180.62,180.51,2.45341283]
[1755666352715,3.94374663,180.61,180.49,2.91]
[1755666352908,2.96,180.59,180.49,2.91]
[1755666353503,5.41341283,180.59,180.46,2.91]
[1755666353702,6.9041625,180.58,180.46,2.91]
[1755666354014,2.96,180.56,180.46,2.91]
[1755666360315,2.83,180.54,180.46,2.91]
[1755666360709,3.94421719,180.53,180.43,5.43341283]
[1755666360915,2.83,180.54,180.43,2.98]
[1755666361113,2.83,180.52,180.43,2.98]
[1755666361315,2.83,180.51,180.43,2.98]
[1755666367317,3.93845124,180.5,180.4,2.98]
[1755666367522,2.83,180.51,180.4,2.98]
[1755666367718,5.28341283,180.49,180.4,2.98]
[1755666367924,2.83,180.48,180.4,2.98]
[1755666369216,2.83,180.48,180.37,5.43341283]
[1755666369816,23.39921726,180.47,180.37,2.98]
[1755666370121,2.83,180.46,180.37,2.98]
[1755666370520,2.83,180.45,180.33,2.98]
[1755666370714,3.9362397,180.44,180.33,2.98]
[1755666370913,2.83,180.42,180.33,2.98]
[1755666375025,2.83,180.42,180.3,2.98]
[1755666376320,2.83,180.42,180.3,8.5264]
[1755666376518,2.83,180.42,180.31,2.98]
[1755666379823,2.83,180.42,180.31,8.5261]
[1755666380023,2.83,180.42,180.32,2.98]
[1755666380425,2.83,180.42,180.33,5.5455]
[1755666380626,135.3,180.43,180.34,2.98]
[1755666380821,2.83,180.42,180.34,2.98]
[1755666382723,2.83,180.42,180.3,2.98]
[1755666384228,2.83,180.42,180.32,2.98]
[1755666388834,2.83,180.42,180.34,2.91]
[1755666390936,2.83,180.42,180.35,5.5449]
[1755666391137,2.83,180.42,180.36,2.91]
[1755666393040,135.3,180.43,180.36,2.91]
[1755666394131,2.96,180.42,180.36,2.91]
[1755666397439,135.3,180.43,180.36,8.4547]
[1755666397741,135.3,180.43,180.37,2.91]
[1755666398342,135.3,180.43,180.41,2.91]
[1755666398542,2.96,180.48,180.39,2.45341283]
[1755666398847,2.96,180.46,180.38,2.91]
[1755666399045,2.96,180.44,180.38,2.91]
[1755666399339,2.96,180.41,180.38,2.91]
[1755666399546,2.96,180.41,180.36,2.45341283]
[1755666399847,2.96,180.47,180.39,2.91]
[1755666400049,2.96,180.45,180.39,2.91]
[1755666400346,2.96,180.43,180.36,5.36341283]
[1755666400736,2.96,180.43,180.37,2.91]
[1755666400935,2.45341283,180.48,180.37,2.91]
[1755666401140,2.96,180.46,180.37,2.91]
[1755666401340,6.64700815,180.45,180.38,2.91]
[1755666401545,3.94202996,180.44,180.38,2.91]
[1755666401744,3.94202996,180.43,180.38,2.91]
[1755666401946,2.96,180.46,180.38,2.91]
[1755666402149,6.64985773,180.45,180.38,2.91]
[1755666402343,3.94371937,180.44,180.38,2.91]
[1755666402545,3.94371937,180.43,180.36,7.99801283]
[1755666402742,2.96,180.47,180.37,2.91]
[1755666402947,2.96,180.45,180.37,2.91]
[1755666403147,3.94600424,180.44,180.37,2.91]
[1755666403448,3.94600424,180.43,180.37,2.91]
[1755666403654,2.96,180.45,180.37,2.91]
[1755666403842,6.65804623,180.44,180.37,2.91]
[1755666404143,3.94857624,180.43,180.37,2.91]
[1755666404339,2.96,180.45,180.37,2.91]
[1755666404544,6.66225723,180.44,180.37,2.91]
[1755666404843,2.96,180.42,180.37,2.91]
[1755666405151,513.94660675,180.49,180.37,2.91]
[1755666405152,2.96,180.41,180.37,2.91]
[1755666405350,2.96,180.41,180.36,2.45341283]
[1755666405552,2.45341283,180.48,180.33,5.5454]
[1755666405744,2.96,180.46,180.34,2.91]
[1755666405943,2.96,180.44,180.34,2.91]
[1755666406143,6.16660675,180.47,180.34,2.91]
[1755666406144,2.96,180.42,180.34,2.91]
[1755666406344,3.95079394,180.41,180.34,2.91]
[1755666407251,2.96,180.42,180.34,5.5453]
[1755666407455,2.71282256,180.41,180.35,2.91]
[1755666407649,2.96,180.42,180.35,2.91]
[1755666408552,2.96,180.42,180.35,8.4549]
[1755666408748,2.96,180.42,180.35,5.5449]
[1755666408949,2.96,180.42,180.36,2.91]
[1755666410253,25.25001958,180.48,180.35,5.5449]
[1755666410554,2.96,180.46,180.34,5.5452]
[1755666410742,2.96,180.44,180.34,5.5452]
[1755666411057,2.96,180.42,180.35,2.91]
[1755666411257,3.95717435,180.41,180.35,2.91]
[1755666411749,2.96,180.42,180.35,8.455]
[1755666411949,2.96,180.42,180.36,2.91]
[1755666416866,2.96,180.42,180.33,7.99891283]
[1755666417166,2.96,180.4,180.33,5.36341283]
[1755666417455,3.96252122,180.39,180.33,5.36341283]
[1755666417651,2.96,180.4,180.33,5.36341283]
[1755666417854,3.96189805,180.39,180.33,5.36341283]
[1755666418056,2.96,180.4,180.33,5.36341283]
[1755666418257,3.96194835,180.39,180.33,5.36341283]
[1755666418556,2.96,180.4,180.33,5.36341283]
[1755666418752,3.96195041,180.39,180.33,5.36341283]
[1755666418952,2.96,180.4,180.33,5.36341283]
[1755666419251,3.96195041,180.39,180.33,5.36341283]
[1755666419559,2.96,180.4,180.33,5.36341283]
[1755666419859,2.84,180.38,180.33,2.91]
[1755666420060,2.84,180.36,180.33,2.91]
[1755666420553,2.84,180.39,180.29,113.38375658]
[1755666420860,2.84,180.37,180.26,3.01]
[1755666421056,2.84,180.35,180.26,8.5575]
[1755666421249,3.96088156,180.34,180.27,3.01]
[1755666421456,2.84,180.35,180.27,3.01]
[1755666421758,3.95933782,180.34,180.27,3.01]
[1755666421960,2.84,180.35,180.27,3.01]
[1755666422160,3.95933782,180.34,180.27,3.01]
[1755666422459,2.84,180.35,180.27,3.01]
[1755666422660,3.95816548,180.34,180.27,3.01]
[1755666422956,2.84,180.38,180.27,3.01]
[1755666423162,2.84,180.36,180.27,3.01]
[1755666423356,3.95815929,180.35,180.27,8.5572]
[1755666423555,2.84,180.36,180.28,3.01]
[1755666424258,2.84,180.4,180.28,2.45341283]
[1755666424559,6.67199003,180.39,180.29,3.01]
[1755666424756,6.67199003,180.38,180.3,5.5463]
[1755666424959,3.95696726,180.37,180.32,3.01]
[1755666425160,2.84,180.4,180.32,3.01]
[1755666425359,6.67238891,180.39,180.32,3.01]
[1755666425562,6.67238891,180.38,180.32,3.01]
[1755666425757,3.95710659,180.37,180.31,7.99941283]
[1755666425959,2.84,180.4,180.32,3.01]
[1755666426160,3.95772533,180.39,180.32,3.01]
[1755666426359,6.6736253,180.38,180.32,3.01]
[1755666426551,6.6736253,180.38,180.31,2.45341283]
[1755666426552,3.95772533,180.37,180.31,2.45341283]
[1755666426756,2.84,180.34,180.31,3.01]
[1755666427460,135.38,180.41,180.28,8.00051283]
[1755666427661,2.84,180.33,180.29,3.01]
[1755666427862,2.84,180.33,180.28,8.00051283]
[1755666427863,2.84,180.33,180.3,3.01]
[1755666428367,2.84,180.38,180.26,3.01]
[1755666428661,2.84,180.36,180.26,3.01]
[1755666428864,2.84,180.34,180.26,3.01]
[1755666429766,2.84,180.34,180.26,8.5577]
[1755666430658,2.84,180.38,180.28,2.45341283]
[1755666430855,2.84,180.38,180.29,3.01]
[1755666430856,3.92342977,180.37,180.29,3.01]
[1755666431063,2.84,180.38,180.29,3.01]
[1755666431361,2.84,180.38,180.3,3.01]
[1755666431961,2.84,180.38,180.32,3.01]
[1755666436970,3.92089599,180.37,180.32,3.01]
[1755666437173,2.84,180.36,180.29,3.01]
[1755666438571,2.84,180.36,180.29,8.5566]
[1755666438870,2.84,180.36,180.3,3.01]
[1755666439474,2.84,180.36,180.3,8.5565]
[1755666440070,2.84,180.39,180.31,8.5561]
[1755666440463,2.84,180.39,180.31,5.46341283]
[1755666440672,138.38,180.43,180.35,3.01]
[1755666441472,138.38,180.43,180.37,2.45341283]
[1755666441778,138.38,180.43,180.39,3.01]
[1755666442281,2.84,180.42,180.39,3.01]
[1755666446081,135.54,180.43,180.37,7.99771283]
[1755666446379,135.54,180.43,180.39,3.01]
[1755666446581,135.54,180.43,180.37,7.99771283]
[1755666446881,138.38,180.43,180.4,3.01]
[1755666447485,2.84,180.48,180.38,3.01]
[1755666447785,2.84,180.46,180.38,3.01]
[1755666448184,2.84,180.46,180.38,8.554]
[1755666449785,2.84,180.46,180.38,3.01]
[1755666455481,2.84,180.46,180.3,110.12047321]
[1755666455689,3.02,180.44,180.33,2.85]
[1755666455889,3.02,180.42,180.33,2.85]
[1755666456285,3.91821421,180.41,180.33,2.85]
[1755666456484,3.02,180.39,180.33,2.85]
[1755666458594,135.3,180.43,180.33,2.85]
[1755666458595,3.02,180.41,180.33,2.85]
[1755666460994,3.91340109,180.4,180.33,2.85]
[1755666461192,3.02,180.39,180.33,2.85]
[1755666462599,3.02,180.39,180.3,110.12047321]
[1755666462798,3.02,180.39,180.3,112.97047321]
[1755666463901,3.02,180.37,180.3,112.97047321]
[1755666465201,3.02,180.37,180.3,2.85]
[1755666470908,3.91185433,180.36,180.3,2.85]
[1755666471206,3.02,180.34,180.3,2.85]
[1755666471607,2.45341283,180.41,180.3,2.85]
[1755666471807,3.02,180.34,180.3,2.85]
[1755666472003,3.02,180.4,180.3,2.85]
[1755666472307,3.02,180.38,180.3,2.85]
[1755666472506,3.02,180.36,180.27,2.45341283]
[1755666472708,3.02,180.36,180.28,2.85]
[1755666473406,2.45341283,180.38,180.28,2.85]
[1755666473407,3.02,180.34,180.28,2.85]
[1755666476110,3.02,180.34,180.26,2.85]
[1755666482607,2.88,180.37,180.28,3.03]
[1755666482806,2.88,180.37,180.3,3.03]
[1755666483312,2.88,180.42,180.3,3.03]
[1755666483515,2.88,180.4,180.3,5.48341283]
[1755666483715,3.90967937,180.39,180.3,2.45341283]
[1755666483914,2.88,180.4,180.31,3.03]
[1755666484110,6.64868666,180.39,180.31,3.03]
[1755666484316,2.88,180.4,180.31,3.03]
[1755666484514,3.90972535,180.39,180.31,3.03]
[1755666484716,3.90939254,180.38,180.31,3.03]
[1755666485012,2.88,180.4,180.31,3.03]
[1755666485319,2.88,180.38,180.31,3.03]
[1755666485519,3.90889963,180.37,180.25,0.96519207]
[1755666485719,6.78886217,180.36,180.28,3.03]
[1755666485911,2.88,180.35,180.28,3.03]
[1755666486317,2.88,180.35,180.26,3.03]
[1755666486517,2.88,180.35,180.26,8.5776]
[1755666486817,2.88,180.35,180.27,3.03]
[1755666495324,2.88,180.35,180.28,3.03]
[1755666495727,2.88,180.39,180.28,3.03]
[1755666495930,2.88,180.37,180.28,3.03]
[1755666496230,2.88,180.35,180.28,3.03]
[1755666499322,3.9211056,180.34,180.28,3.03]
[1755666499628,2.88,180.39,180.28,3.03]
[1755666499833,2.88,180.37,180.28,3.03]
[1755666500025,6.6660209,180.36,180.28,3.03]
[1755666500220,3.92125077,180.35,180.3,2.45341283]
[1755666500530,2.88,180.39,180.31,3.03]
[1755666500828,6.67087791,180.38,180.31,3.03]
[1755666501029,3.92382309,180.37,180.31,3.03]
[1755666501331,2.88,180.39,180.31,8.5759]
[1755666501530,6.67146894,180.38,180.32,3.03]
[1755666501725,2.88,180.39,180.32,3.03]
[1755666502033,6.67085276,180.38,180.32,3.03]
[1755666502229,2.88,180.39,180.32,3.03]
[1755666502429,6.67108587,180.38,180.32,3.03]
[1755666502632,9.55055544,180.37,180.29,3.03]
[1755666502831,2.88,180.35,180.29,3.03]
[1755666503028,2.88,180.33,180.29,3.03]
[1755666503229,2.88,180.32,180.29,3.03]
[1755666503932,2.88,180.32,180.3,3.03]
[1755666505024,2.88,180.32,180.26,5.5476]
[1755666505228,2.88,180.32,180.29,3.03]
[1755666505423,2.88,180.38,180.3,3.03]
[1755666505631,9.54960741,180.37,180.3,3.03]
[1755666505827,6.66960741,180.36,180.3,3.03]
[1755666506027,2.88,180.34,180.31,3.03]
[1755666507033,3.92360331,180.33,180.27,5.48341283]
[1755666507229,2.88,180.38,180.27,5.48341283]
[1755666507428,2.88,180.36,180.27,5.48341283]
[1755666507731,2.88,180.34,180.27,5.48341283]
[1755666507926,6.67150653,180.33,180.27,5.48341283]
[1755666508130,2.88,180.34,180.27,5.48341283]
[1755666508331,3.92431044,180.33,180.27,5.48341283]
[1755666508531,2.88,180.34,180.27,5.48341283]
[1755666508733,6.67216972,180.33,180.27,5.48341283]
[1755666508934,2.88,180.34,180.27,5.48341283]
[1755666509135,6.67216685,180.33,180.27,5.48341283]
[1755666509438,2.88,180.34,180.27,5.48341283]
[1755666509635,6.67180963,180.33,180.27,5.48341283]
[1755666509833,2.88,180.34,180.27,5.48341283]
[1755666510138,6.67180963,180.33,180.27,5.48341283]
[1755666510328,2.88,180.34,180.28,3.07]
[1755666510530,138.54,180.37,180.28,3.07]
[1755666510729,6.67272067,180.36,180.28,3.07]
[1755666510930,3.1,180.34,180.28,3.07]
[1755666511138,137.87341283,180.39,180.29,3.07]
[1755666511139,7.02486411,180.33,180.29,3.07]
[1755666511339,3.1,180.33,180.29,3.07]
[1755666513037,3.1,180.33,180.27,8.00061283]
[1755666513236,3.1,180.33,180.3,3.07]
[1755666513741,3.1,180.33,180.31,3.07]
[1755666513938,3.1,180.33,180.27,8.00061283]
[1755666514441,3.1,180.33,180.3,3.07]
[1755666515441,3.1,180.33,180.27,8.00061283]
[1755666515943,3.1,180.33,180.3,3.07]
[1755666516241,3.1,180.33,180.27,8.00061283]
[1755666516435,3.1,180.37,180.31,3.07]
[1755666516638,3.1,180.35,180.31,3.07]
[1755666516941,3.1,180.34,180.31,3.07]
[1755666517346,3.1,180.37,180.28,3.07]
[1755666517544,6.67275775,180.36,180.28,3.07]
[1755666517736,3.92485209,180.35,180.28,3.07]
[1755666517938,9.77138644,180.34,180.28,3.07]
[1755666518140,3.1,180.34,180.28,3.07]
[1755666519845,135.36,180.38,180.28,8.6169]
[1755666520145,9.78256372,180.37,180.29,3.07]
[1755666520346,6.68256372,180.36,180.29,3.07]
[1755666520644,3.93466585,180.35,180.29,3.07]
[1755666520842,3.1,180.37,180.29,3.07]
[1755666521047,6.68250242,180.36,180.29,8.6168]
[1755666521237,3.1,180.37,180.28,3.07]
[1755666521437,6.68263392,180.36,180.3,5.5463]
[1755666521641,3.1,180.37,180.31,3.07]
[1755666521841,6.68248119,180.36,180.3,7.99971283]
[1755666522044,135.36,180.38,180.33,3.07]
[1755666522245,3.1,180.36,180.33,3.07]
[1755666522444,138.46,180.38,180.34,3.07]
[1755666522645,6.68377381,180.37,180.31,3.07]
[1755666522845,135.36,180.38,180.31,3.07]
[1755666523145,138.46,180.38,180.31,3.07]
[1755666523645,3.9344095,180.37,180.31,3.07]
[1755666523845,3.1,180.37,180.31,3.07]
[1755666524245,3.93435127,180.36,180.31,3.07]
[1755666524445,135.36,180.38,180.31,3.07]
[1755666524645,3.1,180.34,180.31,3.07]
[1755666525043,3.1,180.34,180.3,2.45341283]
[1755666525245,3.1,180.37,180.32,3.07]
[1755666525547,3.1,180.37,180.34,3.07]
[1755666526945,3.1,180.36,180.3,7.99981283]
[1755666527144,3.1,180.36,180.32,3.07]
[1755666527344,3.1,180.36,180.33,3.07]
[1755666528647,3.1,180.36,180.34,3.07]
[1755666530544,135.36,180.4,180.34,3.07]
[1755666530742,3.1,180.37,180.34,3.07]
[1755666530946,135.36,180.4,180.31,5.5461]
[1755666531153,3.1,180.36,180.31,8.6161]
[1755666531352,3.1,180.36,180.33,3.07]
[1755666532553,135.36,180.4,180.3,2.45341283]
[1755666532747,3.1,180.38,180.27,5.52341283]
[1755666532949,3.1,180.36,180.27,5.52341283]
[1755666533148,3.1,180.34,180.27,5.52341283]
[1755666534348,3.93418011,180.33,180.27,3.07]
[1755666534648,3.1,180.34,180.27,3.07]
[1755666534853,3.93439724,180.33,180.27,3.07]
[1755666535056,3.1,180.34,180.27,3.07]
[1755666535251,3.93439724,180.33,180.27,3.07]
[1755666535452,3.1,180.34,180.27,3.07]
[1755666535753,3.1,180.32,180.27,3.07]
[1755666535955,3.1,180.33,180.27,3.07]
[1755666536156,7.03442467,180.32,180.26,5.52341283]
[1755666536350,3.1,180.32,180.26,5.52341283]
[1755666537157,3.1,180.32,180.26,11.07111283]
[1755666537558,3.1,180.32,180.26,5.52341283]
[1755666539164,3.1,180.32,180.26,11.07111283]
[1755666540169,3.93384507,180.31,180.26,3.07]
[1755666540366,3.04,180.29,180.26,3.07]
[1755666540764,3.04,180.36,180.26,3.06]
[1755666540962,3.04,180.34,180.26,5.51341283]
[1755666541265,3.93420232,180.33,180.27,3.06]
[1755666541466,138.44,180.37,180.29,3.06]
[1755666541670,6.68019897,180.36,180.29,5.51341283]
[1755666541968,3.04,180.37,180.31,3.06]
[1755666542165,3.93418041,180.36,180.29,2.45341283]
[1755666542468,3.04,180.39,180.31,5.5462]
[1755666542670,3.04,180.37,180.3,3.06]
[1755666542869,3.93411746,180.36,180.3,8.6062]
[1755666543072,3.04,180.37,180.3,8.6062]
[1755666543363,135.44,180.4,180.29,2.45341283]
[1755666543364,3.04,180.35,180.29,2.45341283]
[1755666543569,3.04,180.33,180.27,3.06]
[1755666564687,3.04,180.36,180.27,3.06]
[1755666564888,6.65693961,180.35,180.27,5.5474]
[1755666565087,3.91305383,180.34,180.28,3.06]
[1755666565389,3.04,180.36,180.28,3.06]
[1755666565591,3.04,180.34,180.28,3.06]
[1755666566182,3.91293953,180.33,180.28,3.06]
[1755666566389,136.91468889,180.37,180.29,1.57468889]
[1755666566691,3.04,180.32,180.29,4.63468889]
[1755666567687,3.04,180.36,180.29,1.57468889]
[1755666567896,3.04,180.34,180.27,1.57468889]
[1755666568191,8.23185445,180.35,180.27,1.57468889]
[1755666568192,3.04,180.32,180.27,1.57468889]
[1755666568395,3.02,180.31,180.27,4.48468889]
[1755666568701,3.02,180.3,180.27,4.48468889]
[1755666569291,3.02,180.3,180.28,2.91]
[1755666572500,3.02,180.34,180.27,1.57468889]
[1755666572799,6.65991555,180.33,180.27,4.48468889]
[1755666573000,3.02,180.3,180.27,4.48468889]
[1755666573392,3.02,180.3,180.27,1.57468889]
[1755666573598,3.02,180.3,180.28,2.91]
[1755666574800,1.57468889,180.35,180.28,2.91]
[1755666575000,9.68110325,180.34,180.28,2.91]
[1755666575301,3.02,180.32,180.28,2.91]
[1755666575496,3.02,180.33,180.27,1.57468889]
[1755666575696,3.02,180.31,180.27,4.48468889]
[1755666575897,3.02,180.31,180.28,2.91]
[1755666576092,3.02,180.31,180.27,1.57468889]
[1755666576399,3.02,180.31,180.29,2.91]
[1755666576901,136.91468889,180.37,180.29,2.91]
[1755666577203,3.02,180.32,180.29,2.91]
[1755666578903,3.02,180.31,180.29,2.91]
[1755666581201,3.02,180.31,180.27,1.57468889]
[1755666581406,136.91468889,180.37,180.27,1.57468889]
[1755666581703,3.02,180.31,180.28,2.91]
[1755666582499,135.34,180.36,180.28,2.91]
[1755666582701,3.02,180.3,180.28,2.91]
[1755666583103,3.02,180.3,180.25,2.91]
[1755666583303,3.02,180.3,180.27,2.91]
[1755666588107,3.02,180.34,180.26,1.57468889]
[1755666588310,3.02,180.32,180.26,1.57468889]
[1755666588510,3.02,180.29,180.27,2.91]
[1755666591111,3.02,180.34,180.26,1.57468889]
[1755666591306,3.02,180.32,180.26,1.57468889]
[1755666591506,3.02,180.3,180.26,1.57468889]
[1755666591707,3.02,180.32,180.24,2.53990773]
[1755666591918,3.02,180.3,180.23,2.91]
[1755666592117,3.02,180.28,180.23,2.91]
[1755666592420,3.02,180.3,180.23,2.91]
[1755666592723,3.02,180.28,180.22,1.57468889]
[1755666592922,3.02,180.28,180.2,114.71131802]
[1755666593122,3.02,180.28,180.22,1.57468889]
[1755666593324,3.02,180.28,180.2,114.71131802]
[1755666593325,3.90185587,180.27,180.2,116.28600691]
[1755666593523,6.64319627,180.26,180.2,1.57468889]
[1755666593723,3.02,180.28,180.2,1.57468889]
[1755666593922,3.02,180.26,180.2,1.57468889]
[1755666596921,4.59468889,180.3,180.23,2.91]
[1755666597223,3.89427365,180.29,180.23,2.91]
[1755666597419,3.02,180.29,180.23,2.91]
[1755666600027,3.02,180.29,180.23,4.48468889]
[1755666600222,2.99,180.32,180.27,1.57468889]
[1755666600423,2.99,180.31,180.28,2.94]
[1755666601426,2.99,180.33,180.25,1.57468889]
[1755666601727,2.99,180.31,180.25,1.57468889]
[1755666602322,2.99,180.31,180.24,2.94]
[1755666602827,2.99,180.31,180.25,2.94]
[1755666604229,2.99,180.29,180.22,2.94]
[1755666606130,2.99,180.27,180.19,2.94]
[1755666609729,2.99,180.27,180.18,2.46180401]
[1755666609929,2.99,180.27,180.17,2.94]
[1755666610328,2.99,180.25,180.16,0.96572776]
[1755666610629,2.99,180.23,180.12,2.94]
[1755666611325,2.99,180.23,180.12,5.5519]
[1755666611528,2.99,180.23,180.13,2.94]
[1755666611730,2.99,180.23,180.13,5.40180401]
[1755666611925,2.99,180.23,180.14,2.94]
[1755666613624,2.99,180.23,180.14,8.4913]
[1755666613834,2.99,180.23,180.15,2.94]
[1755666619530,2.99,180.23,180.11,8.4922]
[1755666619729,2.99,180.23,180.12,2.94]
[1755666620135,2.99,180.23,180.12,8.492]
[1755666620336,2.99,180.23,180.13,2.94]
[1755666623143,2.99,180.23,180.13,5.5517]
[1755666623343,2.99,180.23,180.14,2.94]
[1755666624239,2.99,180.23,180.14,8.4912]
[1755666624443,2.99,180.23,180.14,2.94]
[1755666627346,2.99,180.23,180.14,8.4914]
[1755666627546,2.99,180.23,180.15,2.94]
[1755666635653,2.99,180.23,180.11,2.94]
[1755666636249,2.99,180.23,180.11,5.5523]
[1755666636453,2.99,180.23,180.12,2.94]
[1755666640555,2.99,180.23,180.13,2.94]
[1755666643260,3.89745884,180.22,180.13,2.94]
[1755666643461,2.99,180.21,180.13,2.94]
[1755666644855,3.89853192,180.2,180.13,2.94]
[1755666645060,2.99,180.19,180.13,2.94]
[1755666645355,2.99,180.21,180.13,2.94]
[1755666649966,2.99,180.19,180.13,2.94]
[1755666654364,3.91252378,180.18,180.1,0.96596902]
[1755666654561,2.99,180.17,180.14,2.94]
[1755666654766,2.99,180.17,180.15,2.94]
[1755666655365,2.99,180.17,180.1,0.96596902]
[1755666655565,2.99,180.17,180.14,2.94]
[1755666656062,2.46180401,180.23,180.15,2.94]
[1755666656267,2.99,180.18,180.15,2.94]
[1755666656964,2.99,180.22,180.11,2.94]
[1755666657162,2.99,180.2,180.11,2.94]
[1755666657358,6.67080827,180.19,180.11,2.94]
[1755666657564,9.66080827,180.18,180.11,2.94]
[1755666657768,3.91211633,180.17,180.11,2.94]
[1755666658067,2.99,180.18,180.11,2.94]
[1755666658268,3.91125875,180.17,180.11,2.94]
[1755666658470,2.99,180.18,180.11,2.94]
[1755666658766,3.91070475,180.17,180.11,2.94]
[1755666659067,2.99,180.18,180.11,2.94]
[1755666664363,2.99,180.18,180.12,1.57770409]
[1755666666070,2.99,180.18,180.14,3.03]
[1755666666270,2.89,180.17,180.14,3.03]
[1755666667072,2.89,180.22,180.14,3.03]
[1755666667370,2.89,180.2,180.14,3.03]
[1755666667573,6.66318744,180.19,180.11,3.03]
[1755666667868,2.89,180.22,180.11,3.03]
[1755666668068,6.66402139,180.21,180.11,3.03]
[1755666668373,9.55402139,180.2,180.11,3.03]
[1755666668561,2.89,180.2,180.11,3.03]
[1755666668766,2.89,180.2,180.12,5.5519]
[1755666668969,2.89,180.2,180.13,3.03]
[1755666669168,2.89,180.2,180.13,5.49478652]
[1755666669368,2.89,180.2,180.13,2.46478652]
[1755666669572,2.89,180.2,180.14,3.03]
[1755666670373,3.92158018,180.19,180.14,3.03]
[1755666670682,2.89,180.2,180.14,3.03]
[1755666677289,3.92014702,180.19,180.14,3.03]
[1755666677587,3.91979069,180.18,180.12,3.03]
[1755666677887,2.89,180.18,180.12,3.03]
[1755666681390,2.89,180.16,180.1,3.99596902]
[1755666682195,2.89,180.16,180.1,0.96596902]
[1755666682597,2.89,180.16,180.13,3.03]
[1755666682994,2.89,180.16,180.14,3.03]
[1755666686099,2.89,180.2,180.1,0.96596902]
[1755666686296,2.89,180.18,180.1,0.96596902]
[1755666686496,2.89,180.16,180.1,0.96596902]
[1755666686892,2.89,180.2,180.11,3.03]
[1755666687097,2.89,180.18,180.11,3.03]
[1755666687400,3.91841759,180.17,180.11,3.03]
[1755666687700,2.89,180.18,180.11,3.03]
[1755666688000,3.91832188,180.17,180.11,3.03]
[1755666688300,2.89,180.18,180.12,1.57770122]
[1755666688498,2.96,180.16,180.13,3.07]
[1755666688700,2.96,180.16,180.1,4.03596902]